fUST/lending_fUST_20240523
["ID","MTS","AMOUNT","RATE_DAILY","PERIOD"]
[327762231,1716444647152,-151.0,0.00025979,2]
[327762232,1716444647162,-198.982972,0.00025979,2]
[327762233,1716444647171,-220.215486,0.00025979,2]
[327762234,1716444647184,-220.215486,0.00025979,2]
[327762235,1716444647194,-220.215486,0.00025979,2]
[327762236,1716444647203,-220.215486,0.00025979,2]
[327762237,1716444647213,-220.215486,0.00025979,2]
[327762238,1716444647222,-220.215486,0.00025979,2]
[327762239,1716444647232,-556.535563,0.00025979,2]
[327762240,1716444647242,-556.535563,0.00025979,2]
[327762241,1716444647254,-556.535563,0.00025979,2]
[327762242,1716444647266,-556.535563,0.00025979,2]
[327762243,1716444647276,-556.535563,0.00025979,2]
[327762244,1716444647286,-556.535563,0.00025979,2]
[327762245,1716444647296,-808.139886,0.00025979,2]
[327762246,1716444647306,-808.139886,0.00025979,2]
[327762247,1716444647315,-191.157224,0.00025979,2]
[327762248,1716444647325,-191.157224,0.00025979,2]
[327762249,1716444647334,-151.0,0.00025979,2]
[327762250,1716444647343,-151.0,0.00025979,2]
[327762251,1716444647353,-225.059169,0.00025979,2]
[327762252,1716444647364,-225.059169,0.00025979,2]
[327762253,1716444647373,-151.0,0.00025979,2]
[327762254,1716444647381,-151.0,0.00025979,2]
[327762255,1716444647390,-151.0,0.00025979,2]
[327762256,1716444647400,-151.0,0.00025979,2]
[327762257,1716444647409,-151.0,0.00025979,2]
[327762258,1716444647418,-160.366156,0.00025979,2]
[327762259,1716444647428,-232.807367,0.00025979,2]
[327762260,1716444647438,-160.366156,0.00025979,2]
[327762261,1716444647447,-209.472449,0.00025979,2]
[327762262,1716444647457,-209.472449,0.00025979,2]
[327762263,1716444647466,-209.472449,0.00025979,2]
[327762264,1716444647475,-209.472449,0.00025979,2]
[327762265,1716444647485,-151.0,0.00025979,2]
[327762266,1716444647502,-151.0,0.00025979,2]
[327762267,1716444647515,-3287.289767,0.00025979,2]
[327762268,1716444647525,-3287.289767,0.00025979,2]
[327762269,1716444647535,-3287.289767,0.00025979,2]
[327762270,1716444647545,-3287.289767,0.00025979,2]
[327762271,1716444647555,-3603.67272,0.00025979,2]
[327762272,1716444647566,-3603.67272,0.00025979,2]
[327762273,1716444647576,-653.316831,0.00025979,2]
[327762274,1716444647585,-653.316831,0.00025979,2]
[327762275,1716444647595,-3603.67272,0.00025979,2]
[327762276,1716444647607,-3603.67272,0.00025979,2]
[327762277,1716444647616,-653.316831,0.00025979,2]
[327762278,1716444647626,-1649.668594,0.00025979,2]
[327762279,1716444647636,-653.316831,0.00025979,2]
[327762280,1716444647646,-1649.668594,0.00025979,2]
[327762281,1716444647656,-1649.668594,0.00025979,2]
[327762282,1716444647665,-1649.668594,0.00025979,2]
[327762283,1716444647675,-151.0,0.00025979,2]
[327762284,1716444647825,-151.0,0.00025979,2]
[327762285,1716444647835,-151.0,0.00025979,2]
[327762286,1716444647845,-274.831279,0.00025979,2]
[327762287,1716444647857,-192.24251,0.00025979,2]
[327762288,1716444647867,-192.24251,0.00025979,2]
[327762289,1716444647877,-192.24251,0.00025979,2]
[327762290,1716444647886,-192.24251,0.00025979,2]
[327762291,1716444647896,-661.712251,0.00025979,2]
[327762292,1716444647906,-661.712251,0.00025979,2]
[327762293,1716444647916,-661.712251,0.00025979,2]
[327762294,1716444647926,-661.712251,0.00025979,2]
[327762295,1716444647936,-508.578085,0.00025979,2]
[327762296,1716444647946,-508.578085,0.00025979,2]
[327762297,1716444647956,-508.578085,0.00025979,2]
[327762298,1716444647966,-508.578085,0.00025979,2]
[327762299,1716444647976,-263.708512,0.00025979,2]
[327762300,1716444647986,-263.708512,0.00025979,2]
[327762301,1716444647996,-263.708512,0.00025979,2]
[327762302,1716444648006,-263.708512,0.00025979,2]
[327762303,1716444648016,-263.708512,0.00025979,2]
[327762304,1716444648025,-263.708518,0.00025979,2]
[327762305,1716444648035,-2636.988581,0.00025979,2]
[327762306,1716444648045,-2636.988581,0.00025979,2]
[327762307,1716444648056,-2636.988581,0.00025979,2]
[327762308,1716444648066,-2636.988581,0.00025979,2]
[327762309,1716444648075,-2636.988581,0.00025979,2]
[327762310,1716444648084,-2636.988583,0.00025979,2]
[327762311,1716444648095,-234.699349,0.00025979,2]
[327762312,1716444648104,-234.699349,0.00025979,2]
[327762313,1716444648116,-234.699349,0.00025979,2]
[327762314,1716444648125,-234.699349,0.00025979,2]
[327762315,1716444648135,-234.699349,0.00025979,2]
[327762316,1716444648145,-234.69934,0.00025979,2]
[327762317,1716444648155,-485.615674,0.00025979,2]
[327762318,1716444648164,-485.61568017,0.00025979,2]
[327762319,1716444648175,-1063.391534,0.00025979,2]
[327762320,1716444648190,-1063.391538,0.00025979,2]
[327762321,1716444648201,-220.349741,0.00025979,2]
[327762322,1716444648211,-176.404974,0.00025979,2]
[327762323,1716444648223,-220.349732,0.00025979,2]
[327762324,1716444648234,-1037.783389,0.00025979,2]
[327762325,1716444648245,-176.404969,0.00025979,2]
[327762326,1716444648255,-1037.783385,0.00025979,2]
[327762327,1716444648269,-6897.24760705,0.00026,2]
[327762328,1716444648280,-151.0,0.00026,2]
[327762329,1716444648290,-280.958429,0.00026,2]
[327762330,1716444648300,-280.958429,0.00026,2]
[327762331,1716444648309,-808.139886,0.00026,2]
[327762332,1716444648319,-808.139886,0.00026,2]
[327762333,1716444648329,-191.157224,0.00026,2]
[327762334,1716444648339,-191.157224,0.00026,2]
[327762335,1716444648349,-151.0,0.00026,2]
[327762336,1716444648358,-151.0,0.00026,2]
[327762337,1716444648368,-225.059169,0.00026,2]
[327762338,1716444648378,-225.059169,0.00026,2]
[327762339,1716444648387,-151.0,0.00026,2]
[327762340,1716444648397,-151.0,0.00026,2]
[327762341,1716444648406,-160.366156,0.00026,2]
[327762342,1716444648416,-160.366156,0.00026,2]
[327762343,1716444648425,-209.472449,0.00026,2]
[327762344,1716444648435,-209.472449,0.00026,2]
[327762345,1716444648445,-151.0,0.00026,2]
[327762346,1716444648455,-3287.289767,0.00026,2]
[327762347,1716444648464,-3287.289767,0.00026,2]
[327762348,1716444648475,-3603.67272,0.00026,2]
[327762349,1716444648485,-653.316831,0.00026,2]
[327762350,1716444648494,-3603.67272,0.00026,2]
[327762351,1716444648504,-653.316831,0.00026,2]
[327762352,1716444648514,-1649.668594,0.00026,2]
[327762353,1716444648523,-1649.668594,0.00026,2]
[327762354,1716444648533,-151.0,0.00026,2]
[327762355,1716444648542,-192.24251,0.00026,2]
[327762356,1716444648552,-192.24251,0.00026,2]
[327762357,1716444648561,-661.712251,0.00026,2]
[327762358,1716444648571,-661.712251,0.00026,2]
[327762359,1716444648580,-508.578085,0.00026,2]
[327762360,1716444648590,-508.578085,0.00026,2]
[327762361,1716444648599,-151.0,0.00026,2]
[327762362,1716444648610,-151.0,0.00026426,2]
[327762363,1716444648619,-151.0,0.00026426,2]
[327762364,1716444648629,-1151.055219,0.00026426,2]
[327762365,1716444648639,-1151.055219,0.00026426,2]
[327762366,1716444648648,-1151.055219,0.00026426,2]
[327762367,1716444648658,-1151.055219,0.00026426,2]
[327762368,1716444648667,-151.0,0.00026426,2]
[327762369,1716444648677,-220.215486,0.00026426,2]
[327762370,1716444648686,-220.215486,0.00026426,2]
[327762371,1716444648695,-556.535563,0.00026426,2]
[327762372,1716444648705,-556.535563,0.00026426,2]
[327762373,1716444648714,-151.0,0.00026426,2]
[327762374,1716444648725,-225.059169,0.00026426,2]
[327762375,1716444648735,-225.059169,0.00026426,2]
[327762376,1716444648744,-160.366156,0.00026426,2]
[327762377,1716444648754,-160.366156,0.00026426,2]
[327762378,1716444648764,-209.472449,0.00026426,2]
[327762379,1716444648773,-209.472449,0.00026426,2]
[327762380,1716444648783,-151.0,0.00026426,2]
[327762381,1716444648792,-3287.289767,0.00026426,2]
[327762382,1716444648801,-3287.289767,0.00026426,2]
[327762383,1716444648811,-3603.67272,0.00026426,2]
[327762384,1716444648822,-653.316831,0.00026426,2]
[327762385,1716444648832,-3603.67272,0.00026426,2]
[327762386,1716444648841,-653.316831,0.00026426,2]
[327762387,1716444648852,-1649.668594,0.00026426,2]
[327762388,1716444648866,-1649.668594,0.00026426,2]
[327762389,1716444648876,-151.0,0.00026426,2]
[327762390,1716444648886,-192.24251,0.00026426,2]
[327762391,1716444648897,-192.24251,0.00026426,2]
[327762392,1716444648907,-661.712251,0.00026426,2]
[327762393,1716444648917,-661.712251,0.00026426,2]
[327762394,1716444648927,-508.578085,0.00026426,2]
[327762395,1716444648936,-508.578085,0.00026426,2]
[327762396,1716444648946,-151.0,0.00026426,2]
[327762397,1716444648956,-162.560857,0.00026497,2]
[327762398,1716444648966,-2105.38655213,0.00026497,2]
[327762399,1716444648979,-2635.84610155,0.00026497,2]
[327762400,1716444648989,-156.4485373,0.00026497,2]
[327762401,1716444648999,-151.0,0.00026497,2]
[327762402,1716444649009,-151.0,0.00026497,2]
[327762403,1716444649019,-280.958429,0.00026497,2]
[327762404,1716444649029,-280.958429,0.00026497,2]
[327762405,1716444649038,-808.139886,0.00026497,2]
[327762406,1716444649048,-808.139886,0.00026497,2]
[327762407,1716444649058,-191.157224,0.00026497,2]
[327762408,1716444649068,-191.157224,0.00026497,2]
[327762409,1716444649077,-151.0,0.00026497,2]
[327762410,1716444649186,-225.059169,0.00026497,2]
[327762411,1716444649197,-225.059169,0.00026497,2]
[327762412,1716444649207,-151.0,0.00026497,2]
[327762413,1716444649216,-151.0,0.00026497,2]
[327762414,1716444649226,-193.225977,0.00026497,2]
[327762415,1716444649236,-160.366156,0.00026497,2]
[327762416,1716444649245,-160.366156,0.00026497,2]
[327762417,1716444649255,-209.472449,0.00026497,2]
[327762418,1716444649267,-209.472449,0.00026497,2]
[327762419,1716444649277,-151.0,0.00026497,2]
[327762420,1716444649286,-3287.289767,0.00026497,2]
[327762421,1716444649296,-3287.289767,0.00026497,2]
[327762422,1716444649306,-3603.67272,0.00026497,2]
[327762423,1716444649315,-653.316831,0.00026497,2]
[327762424,1716444649324,-3603.67272,0.00026497,2]
[327762425,1716444649334,-653.316831,0.00026497,2]
[327762426,1716444649343,-1649.668594,0.00026497,2]
[327762427,1716444649352,-1649.668594,0.00026497,2]
[327762428,1716444649364,-151.0,0.00026497,2]
[327762429,1716444649374,-192.24251,0.00026497,2]
[327762430,1716444649383,-192.24251,0.00026497,2]
[327762431,1716444649392,-661.712251,0.00026497,2]
[327762432,1716444649402,-661.712251,0.00026497,2]
[327762433,1716444649412,-508.578085,0.00026497,2]
[327762434,1716444649422,-508.578085,0.00026497,2]
[327762435,1716444649432,-151.0,0.00026497,2]
[327762436,1716444649442,-232.8,0.00026829,5]
[327762437,1716444649451,-620.00006263,0.00027062,2]
[327762438,1716444649461,-608.72120872,0.00027231,2]
[327762439,1716444649470,-808.139886,0.00027264,2]
[327762440,1716444649480,-808.139886,0.00027264,2]
[327762441,1716444649489,-191.157224,0.00027264,2]
[327762442,1716444649498,-191.157224,0.00027264,2]
[327762443,1716444649508,-151.0,0.00027264,2]
[327762444,1716444649517,-585.56014853,0.00027264,2]
[327762445,1716444649526,-2000.0,0.00027264,2]
[327762446,1716444649536,-151.0,0.00027364,2]
[327762447,1716444649545,-151.0,0.00027364,2]
[327762448,1716444649554,-151.0,0.00027364,2]
[327762449,1716444649564,-301.219303,0.00027364,2]
[327762450,1716444649574,-1151.055219,0.00027364,2]
[327762451,1716444649583,-1151.055219,0.00027364,2]
[327762452,1716444649592,-151.0,0.00027364,2]
[327762453,1716444649602,-220.215486,0.00027364,2]
[327762454,1716444649612,-220.215486,0.00027364,2]
[327762455,1716444649622,-556.535563,0.00027364,2]
[327762456,1716444649631,-556.535563,0.00027364,2]
[327762457,1716444649640,-209.472449,0.00027364,2]
[327762458,1716444649649,-209.472449,0.00027364,2]
[327762459,1716444649658,-151.0,0.00027364,2]
[327762460,1716444649668,-3287.289767,0.00027364,2]
[327762461,1716444649677,-3287.289767,0.00027364,2]
[327762462,1716444649687,-3603.67272,0.00027364,2]
[327762463,1716444649697,-653.316831,0.00027364,2]
[327762464,1716444649707,-3603.67272,0.00027364,2]
[327762465,1716444649716,-653.316831,0.00027364,2]
[327762466,1716444649727,-1649.668594,0.00027364,2]
[327762467,1716444649736,-1649.668594,0.00027364,2]
[327762468,1716444649748,-151.0,0.00027364,2]
[327762469,1716444649775,-192.24251,0.00027364,2]
[327762470,1716444649792,-192.24251,0.00027364,2]
[327762471,1716444649813,-661.712251,0.00027364,2]
[327762472,1716444649835,-661.712251,0.00027364,2]
[327762473,1716444649854,-508.578085,0.00027364,2]
[327762474,1716444649874,-508.578085,0.00027364,2]
[327762475,1716444649889,-151.0,0.00027364,2]
[327762476,1716444649907,-1136.74590385,0.0002739,2]
[327762477,1716444649925,-225.059169,0.0002739,2]
[327762478,1716444649946,-225.059169,0.0002739,2]
[327762479,1716444649958,-160.366156,0.0002739,2]
[327762480,1716444649978,-160.366156,0.0002739,2]
[327762481,1716444649992,-151.0,0.00027397,2]
[327762482,1716444650009,-151.0,0.00027397,2]
[327762483,1716444650023,-151.0,0.00027397,2]
[327762484,1716444650038,-280.958429,0.00027397,2]
[327762485,1716444650053,-280.958429,0.00027397,2]
[327762486,1716444650068,-151.0,0.00027397,2]
[327762487,1716444650083,-220.215486,0.00027397,2]
[327762488,1716444650100,-220.215486,0.00027397,2]
[327762489,1716444650115,-556.535563,0.00027397,2]
[327762490,1716444650129,-556.535563,0.00027397,2]
[327762491,1716444650144,-808.139886,0.00027397,2]
[327762492,1716444650158,-808.139886,0.00027397,2]
[327762493,1716444650173,-808.139886,0.00027397,2]
[327762494,1716444650192,-808.139886,0.00027397,2]
[327762495,1716444650207,-191.157224,0.00027397,2]
[327762496,1716444650223,-191.157224,0.00027397,2]
[327762497,1716444650238,-191.157224,0.00027397,2]
[327762498,1716444650253,-191.157224,0.00027397,2]
[327762499,1716444650269,-151.0,0.00027397,2]
[327762500,1716444650283,-151.0,0.00027397,2]
[327762501,1716444650298,-225.059169,0.00027397,2]
[327762502,1716444650312,-225.059169,0.00027397,2]
[327762503,1716444650327,-225.059169,0.00027397,2]
[327762504,1716444650342,-225.059174,0.00027397,2]
[327762505,1716444650357,-151.0,0.00027397,2]
[327762506,1716444650372,-151.0,0.00027397,2]
[327762507,1716444650387,-160.366156,0.00027397,2]
[327762508,1716444650402,-160.366156,0.00027397,2]
[327762509,1716444650416,-160.366156,0.00027397,2]
[327762510,1716444650430,-160.366148,0.00027397,2]
[327762511,1716444650445,-2755.59,0.00027397,5]
[327762512,1716444650459,-2755.59,0.00027397,6]
[327762513,1716444650473,-2755.59,0.00027397,7]
[327762514,1716444650487,-2755.59,0.00027397,8]
[327762515,1716444650504,-2755.59,0.00027397,9]
[327762516,1716444650518,-2755.59,0.00027397,10]
[327762517,1716444650533,-209.472449,0.00027397,2]
[327762518,1716444650549,-209.472449,0.00027397,2]
[327762519,1716444650563,-151.0,0.00027397,2]
[327762520,1716444650577,-3287.289767,0.00027397,2]
[327762521,1716444650592,-3287.28976515,0.00027397,2]
[327762522,1716444650602,-3603.67272,0.00027397,2]
[327762523,1716444650612,-653.316831,0.00027397,2]
[327762524,1716444650622,-3603.672712,0.00027397,2]
[327762525,1716444650631,-653.316823,0.00027397,2]
[327762526,1716444650792,-1649.668594,0.00027397,2]
[327762527,1716444650813,-1649.668584,0.00027397,2]
[327762528,1716444650825,-151.0,0.00027397,2]
[327762529,1716444650835,-192.24251,0.00027397,2]
[327762530,1716444650844,-192.242511,0.00027397,2]
[327762531,1716444650853,-661.712251,0.00027397,2]
[327762532,1716444650864,-661.712245,0.00027397,2]
[327762533,1716444650873,-508.578085,0.00027397,2]
[327762534,1716444650882,-508.578086,0.00027397,2]
[327762535,1716444650891,-500.0,0.00027397,2]
[327762536,1716444650900,-500.0,0.00027397,2]
[327762537,1716444650910,-500.0,0.00027397,2]
[327762538,1716444650919,-500.0,0.00027397,2]
[327762539,1716444650928,-500.0,0.00027397,2]
[327762540,1716444650938,-500.0,0.00027397,2]
[327762541,1716444650947,-500.0,0.00027397,2]
[327762542,1716444650956,-500.0,0.00027397,2]
[327762543,1716444650965,-499.55845029,0.00027397,2]
[327762544,1716444650974,-500.0,0.00027397,2]
[327762545,1716444650983,-500.0,0.00027397,2]
[327762546,1716444650993,-500.0,0.00027397,2]
[327762547,1716444651002,-500.0,0.00027397,2]
[327762548,1716444651011,-500.0,0.00027397,2]
[327762549,1716444651020,-500.0,0.00027397,2]
[327762550,1716444651029,-500.0,0.00027397,2]
[327762551,1716444651038,-512.80775792,0.00027397,2]
[327762552,1716444651047,-500.0,0.00027397,2]
[327762553,1716444651056,-500.0,0.00027397,2]
[327762554,1716444651066,-151.0,0.00027397,2]
[327762555,1716444651075,-151.0,0.00027397,2]
[327762556,1716444651084,-151.0,0.00027397,2]
[327762557,1716444651093,-151.0,0.00027397,2]
[327762558,1716444651102,-152.12539,0.00027397,2]
[327762559,1716444651112,-1970.79152,0.00027397,2]
[327762560,1716444651122,-1970.79152,0.00027397,2]
[327762561,1716444651131,-1970.79152,0.00027397,2]
[327762562,1716444651140,-1970.79152,0.00027397,2]
[327762563,1716444651149,-1970.79152,0.00027397,2]
[327762564,1716444651158,-1970.79152,0.00027397,2]
[327762565,1716444651168,-1970.79152,0.00027397,2]
[327762566,1716444651178,-1970.79152,0.00027397,2]
[327762567,1716444651189,-1970.79152,0.00027397,2]
[327762568,1716444651199,-1970.79152,0.00027397,2]
[327762569,1716444651208,-1970.79152,0.00027397,2]
[327762570,1716444651217,-1970.79152,0.00027397,2]
[327762571,1716444651228,-151.0,0.00027397,2]
[327762572,1716444651238,-151.0,0.00027397,2]
[327762573,1716444651248,-151.0,0.00027397,2]
[327762574,1716444651257,-151.0,0.00027397,2]
[327762575,1716444651269,-151.0,0.00027397,2]
[327762576,1716444651279,-151.0,0.00027397,2]
[327762577,1716444651288,-151.0,0.00027397,2]
[327762578,1716444651298,-151.0,0.00027397,2]
[327762579,1716444651307,-151.0,0.00027397,2]
[327762580,1716444651316,-209.697506,0.00027397,2]
[327762581,1716444651325,-232.8,0.00027863,7]
[327762582,1716444651334,-221.60537528,0.00028,2]
[327762583,1716444651343,-620.00000313,0.00028415,2]
[327762584,1716444651353,-500.0,0.000285,2]
[327762585,1716444651363,-418.399999,0.000286,2]
[327762586,1716444651371,-500.0,0.000286,2]
[327762587,1716444651380,-151.0,0.0002867,2]
[327762588,1716444651389,-280.958429,0.0002867,2]
[327762589,1716444651398,-280.958429,0.0002867,2]
[327762590,1716444651407,-151.0,0.0002867,2]
[327762591,1716444651417,-220.215486,0.0002867,2]
[327762592,1716444651426,-220.215486,0.0002867,2]
[327762593,1716444651435,-1970.79152,0.0002867,2]
[327762594,1716444651444,-556.535563,0.0002867,2]
[327762595,1716444651453,-1970.79152,0.0002867,2]
[327762596,1716444651463,-556.535563,0.0002867,2]
[327762597,1716444651472,-808.139886,0.0002867,2]
[327762598,1716444651481,-808.139876,0.0002867,2]
[327762599,1716444651491,-191.157224,0.0002867,2]
[327762600,1716444651500,-191.157232,0.0002867,2]
[327762601,1716444651509,-151.0,0.0002867,2]
[327762602,1716444651518,-151.0,0.0002867,2]
[327762603,1716444651528,-57532.64105152,0.0002867,3]
[327762604,1716444651537,-417.48839794,0.00028697,2]
[327762605,1716444651547,-295.0,0.000287,2]
[327762606,1716444651556,-567.02081443,0.000287,2]
[327762607,1716444651565,-151.0,0.000287,2]
[327762608,1716444651574,-1249.50842235,0.00028742,2]
[327762609,1716444651583,-2755.59,0.00028748,11]
[327762610,1716444651593,-151.0,0.00028749,2]
[327762611,1716444651602,-151.0,0.00028749,2]
[327762612,1716444651613,-153.426562,0.00028749,2]
[327762613,1716444651622,-151.0,0.00028749,2]
[327762614,1716444651631,-250.313001,0.00028749,2]
[327762615,1716444651641,-1151.055219,0.00028749,2]
[327762616,1716444651650,-1151.055219,0.00028749,2]
[327762617,1716444651659,-1151.055219,0.00028749,2]
[327762618,1716444651669,-1151.055219,0.00028749,2]
[327762619,1716444651678,-195.714451,0.00028749,2]
[327762620,1716444651687,-280.958429,0.00028749,2]
[327762621,1716444651696,-280.958429,0.00028749,2]
[327762622,1716444651706,-280.958429,0.00028749,2]
[327762623,1716444651715,-280.958429,0.00028749,2]
[327762624,1716444651724,-151.0,0.00028749,2]
[327762625,1716444651734,-220.215486,0.00028749,2]
[327762626,1716444651755,-220.215486,0.00028749,2]
[327762627,1716444651764,-220.215486,0.00028749,2]
[327762628,1716444651774,-220.215486,0.00028749,2]
[327762629,1716444651783,-1970.79152,0.00028749,2]
[327762630,1716444651793,-1970.79152,0.00028749,2]
[327762631,1716444651804,-556.535563,0.00028749,2]
[327762632,1716444651815,-556.535563,0.00028749,2]
[327762633,1716444651826,-1970.79152,0.00028749,2]
[327762634,1716444651836,-1970.79152,0.00028749,2]
[327762635,1716444651845,-556.535563,0.00028749,2]
[327762636,1716444651855,-556.535563,0.00028749,2]
[327762637,1716444651868,-2755.59,0.00028769,12]
[327762638,1716444651877,-2755.59,0.00028769,13]
[327762639,1716444651886,-3303.51337612,0.0002877,11]
[327762640,1716444651895,-18270.03936075,0.0002877,2]
[327762641,1716444651905,-151.0,0.0002877,2]
[327762642,1716444651916,-1151.055219,0.0002877,2]
[327762643,1716444651927,-1151.055219,0.0002877,2]
[327762644,1716444651936,-1151.055219,0.0002877,2]
[327762645,1716444651946,-1151.055219,0.0002877,2]
[327762646,1716444651955,-280.958429,0.0002877,2]
[327762647,1716444651964,-280.958429,0.0002877,2]
[327762648,1716444651974,-280.958429,0.0002877,2]
[327762649,1716444651984,-280.958429,0.0002877,2]
[327762650,1716444651994,-151.0,0.0002877,2]
[327762651,1716444652006,-220.215486,0.0002877,2]
[327762652,1716444652018,-220.215476,0.0002877,2]
[327762653,1716444652028,-1970.79152,0.0002877,2]
[327762654,1716444652037,-556.535563,0.0002877,2]
[327762655,1716444652046,-1970.791512,0.0002877,2]
[327762656,1716444652055,-556.535559,0.0002877,2]
[327762657,1716444652064,-150.90945433,0.00028857,2]
[327762658,1716444652072,-250.34067559,0.00028857,2]
[327762659,1716444652081,-1544.01257882,0.00028877,30]
[327762660,1716444652090,-750.54476836,0.00028877,30]
[327762661,1716444652099,-3769.08115748,0.00028877,30]
[327762662,1716444652108,-232.8,0.00028897,7]
[327762663,1716444652118,-474.89706503,0.000289,2]
[327762664,1716444652127,-431.42209908,0.00029,2]
[327762665,1716444652136,-189.82109357,0.00029,2]
[327762666,1716444652145,-416.123894,0.00029011,2]
[327762667,1716444652154,-301.81890865,0.00029342,4]
[327762668,1716444652163,-608.72120872,0.00029371,2]
[327762669,1716444652171,-300.0,0.000296,2]
[327762670,1716444652180,-151.0,0.00029721,2]
[327762671,1716444652194,-603.63781731,0.00029835,7]
[327762672,1716444652203,-620.00000016,0.00029836,2]
[327762673,1716444652212,-232.8,0.00029932,7]
[327762674,1716444652222,-151.0,0.00029999,2]
[327762675,1716444652230,-154.497591,0.00029999,2]
[327762676,1716444652239,-2755.59,0.00029999,14]
[327762677,1716444652248,-2755.59,0.00029999,15]
[327762678,1716444652257,-18218.28060867,0.0003,2]
[327762679,1716444652268,-464.44827012,0.0003,30]
[327762680,1716444652277,-570.924351,0.0003,4]
[327762681,1716444652286,-2106.09530274,0.0003,4]
[327762682,1716444652295,-155.17542411,0.0003,2]
[327762683,1716444652304,-2615.55442515,0.0003,10]
[327762684,1716444652313,-7724.40852647,0.0003,10]
[327762685,1716444652321,-2443.0,0.0003,2]
[327762686,1716444652330,-500.0,0.0003,4]
[327762687,1716444652339,-151.0,0.0003,2]
[327762688,1716444652348,-1151.055219,0.0003,2]
[327762689,1716444652357,-1151.055219,0.0003,2]
[327762690,1716444652368,-1151.055219,0.0003,2]
[327762691,1716444652376,-1151.055219,0.0003,2]
[327762692,1716444652385,-280.958429,0.0003,2]
[327762693,1716444652395,-280.958423,0.0003,2]
[327762694,1716444652404,-151.0,0.0003,2]
[327762695,1716444652413,-1211.3943755,0.0003,3]
[327762696,1716444652422,-216.0,0.0003,2]
[327762697,1716444652432,-2755.59,0.00030035,16]
[327762698,1716444652441,-2755.59,0.00030035,17]
[327762699,1716444652450,-2755.59,0.00030035,18]
[327762700,1716444652459,-151.0,0.00030036,2]
[327762701,1716444652468,-151.0,0.00030036,2]
[327762702,1716444652477,-1151.055219,0.00030036,2]
[327762703,1716444652485,-1151.055224,0.00030036,2]
[327762704,1716444652494,-2755.59,0.00030135,19]
[327762705,1716444652503,-2755.59,0.00030135,20]
[327762706,1716444652513,-2755.59,0.00030135,21]
[327762707,1716444652522,-151.0,0.00030136,2]
[327762708,1716444652531,-151.0,0.00030136,2]
[327762709,1716444652540,-151.0,0.00030136,2]
[327762710,1716444652548,-163.07,0.00030136,2]
[327762711,1716444652557,-163.07,0.00030136,2]
[327762712,1716444652566,-163.07,0.00030136,2]
[327762713,1716444652575,-163.07,0.00030136,2]
[327762714,1716444652584,-163.07,0.00030136,2]
[327762715,1716444652594,-163.07,0.00030136,2]
[327762716,1716444652603,-163.07,0.00030136,2]
[327762717,1716444652613,-163.07,0.00030136,2]
[327762718,1716444652622,-163.07,0.00030136,2]
[327762719,1716444652632,-163.07,0.00030136,2]
[327762720,1716444652640,-6055.24,0.00030136,6]
[327762721,1716444652650,-6055.24,0.00030136,6]
[327762722,1716444652659,-6055.24,0.00030136,6]
[327762723,1716444652668,-6055.24,0.00030136,6]
[327762724,1716444652677,-6055.24,0.00030136,6]
[327762725,1716444652686,-6055.24,0.00030136,6]
[327762726,1716444652695,-6055.24,0.00030136,6]
[327762727,1716444652704,-6055.24,0.00030136,6]
[327762728,1716444652713,-6055.24,0.00030136,6]
[327762729,1716444652723,-6055.24,0.00030136,6]
[327762730,1716444652732,-6055.24,0.00030136,6]